bitfinex-derivatives/quotes_ETHF0:USTF0_20230402
["timestamp","ask_amount","ask_price","bid_price","bid_amount"]
[1680448100318,1.0,1801.5,1800.9,3.2078]
[1680448100319,2.12175824,1801.5,1800.9,3.2078]
[1680448100528,1.12175824,1801.5,1801.2,3.2078]
[1680448101422,1.0,1801.6,1801.2,3.2078]
[1680448101626,1.12175824,1801.4,1801.2,3.2078]
[1680448102123,1.12175824,1801.1,1801.0,3.2078]
[1680448102326,1.12175824,1800.9,1800.8,3.2078]
[1680448103423,1.0,1801.3,1800.8,8.7158]
[1680448103625,1.0,1801.3,1801.1,3.2078]
[1680448103819,1.0,1801.4,1801.1,3.2078]
[1680448104026,2.12175824,1801.5,1801.3,3.2078]
[1680448104230,1.12175824,1801.5,1801.3,3.2078]
[1680448105330,5.9666,1801.7,1801.3,3.2078]
[1680448105532,1.12175824,1801.6,1801.5,3.2078]
[1680448106329,3.76641902,1801.9,1801.5,8.7158]
[1680448106635,1.12175824,1801.6,1801.5,8.7158]
[1680448107331,3.2078,1802.1,1801.5,8.7158]
[1680448107529,1.12175824,1801.7,1801.5,5.508]
[1680448107730,1.0,1802.0,1801.6,3.2078]
[1680448107731,1.12175824,1801.9,1801.6,3.2078]
[1680448107932,3.2078,1802.1,1801.6,3.2078]
[1680448108535,1.0,1802.2,1801.6,3.2078]
[1680448108731,1.12175824,1801.7,1801.6,3.2078]
[1680448108938,1.12175824,1801.7,1801.4,3.2078]
[1680448109437,1.12175824,1801.7,1801.5,0.69147679]
[1680448109733,1.12175824,1801.7,1801.6,3.2078]
[1680448110340,1.12175824,1801.7,1801.5,0.69147679]
[1680448110938,1.0,1801.8,1801.4,3.2078]
[1680448111139,1.12175824,1801.7,1801.6,3.2078]
[1680448111529,1.12175824,1801.7,1801.4,3.2078]
[1680448112137,1.12175824,1801.7,1801.6,3.2078]
[1680448114143,1.11394839,1801.7,1801.6,3.2078]
[1680448114342,1.0,1802.1,1801.6,3.2078]
[1680448114544,1.11394839,1801.7,1801.6,3.2078]
[1680448116840,1.11394839,1801.7,1801.4,3.2078]
[1680448118141,1.0,1802.0,1801.2,3.2078]
[1680448118142,1.11394839,1801.6,1801.2,3.2078]
[1680448118344,1.11394839,1801.6,1801.5,3.2078]
[1680448121157,1.11394839,1801.8,1801.5,8.7158]
[1680448121443,1.11394839,1801.8,1801.7,3.2078]
[1680448124441,1.11394839,1801.8,1801.7,3.80024167]
[1680448124647,3.2078,1801.9,1801.4,3.2078]
[1680448124849,1.11394839,1801.0,1800.9,0.86816441]
[1680448125056,1.11394839,1801.0,1800.8,0.86816441]
[1680448125650,1.0,1801.5,1800.9,3.2078]
[1680448125856,1.11394839,1801.1,1800.9,9.58396441]
[1680448126049,1.11394839,1801.1,1800.9,15.42319579]
[1680448126256,1.11394839,1801.1,1800.9,16.42319579]
[1680448126447,1.11394839,1801.1,1800.9,5.07596441]
[1680448126646,1.11394839,1801.1,1800.9,4.07596441]
[1680448126852,1.11394839,1801.1,1800.9,9.58396441]
[1680448127152,1.11394839,1801.1,1800.9,4.07596441]
[1680448128351,1.11394839,1801.1,1800.9,0.86816441]
[1680448128656,1.11394839,1800.9,1800.7,4.07596441]
[1680448129156,1.11394839,1800.7,1800.6,0.86816441]
[1680448129453,1.11394839,1800.7,1800.5,1.14313719]
[1680448129454,1.11394839,1800.7,1800.5,0.86816441]
[1680448129953,0.10719762,1800.6,1800.5,0.86816441]
[1680448130251,4.32174839,1800.7,1800.5,0.86816441]
[1680448130449,4.32174839,1800.7,1800.4,0.86816441]
[1680448130651,1.0,1800.6,1800.4,0.86816441]
[1680448130855,2.11394839,1800.6,1800.4,0.86816441]
[1680448131952,1.11394839,1800.6,1800.5,0.86816441]
[1680448132361,1.2172478,1800.6,1800.5,0.86816441]
[1680448133059,1.2172478,1800.6,1800.4,0.86816441]
[1680448136367,2.2172478,1800.6,1800.4,0.86816441]
[1680448136561,2.2172478,1800.6,1800.3,3.2078]
[1680448136562,1.11394839,1800.4,1800.3,0.86816441]
[1680448136871,2.11394839,1800.4,1800.2,0.86816441]
[1680448137068,1.11394839,1800.4,1800.2,0.86816441]
[1680448139477,0.08628827,1800.3,1800.2,0.86816441]
[1680448139878,3.29408827,1800.3,1800.1,0.86816441]
[1680448140174,1.11394839,1800.2,1800.0,0.86816441]
[1680448140476,3.2078,1800.1,1800.0,0.86816441]
[1680448142069,1.11394839,1800.2,1800.0,0.86816441]
[1680448142268,1.11394839,1800.2,1800.1,0.86816441]
[1680448143780,0.08628827,1800.3,1800.1,6.37616441]
[1680448143973,3.2078,1800.5,1800.1,6.37616441]
[1680448144173,1.11394839,1800.3,1800.1,6.37616441]
[1680448145277,1.11394839,1800.3,1800.0,0.86816441]
[1680448145477,1.11394839,1800.3,1800.1,6.37616441]
[1680448145871,3.2078,1800.5,1800.1,9.58396441]
[1680448146074,1.11394839,1800.2,1800.1,6.37616441]
[1680448147175,3.2078,1800.5,1800.1,9.58396441]
[1680448147384,3.2078,1800.7,1800.3,5.508]
[1680448147684,1.11394839,1800.6,1800.3,9.58396441]
[1680448148678,1.11394839,1800.4,1800.2,0.86816441]
[1680448148883,1.11394839,1800.4,1800.1,0.86816441]
[1680448149279,1.11394839,1800.4,1800.0,0.86816441]
[1680448149583,1.11394839,1800.4,1800.0,6.37616441]
[1680448149883,1.11394839,1800.4,1799.9,0.86816441]
[1680448149884,1.11394839,1800.1,1799.9,0.86816441]
[1680448150081,3.2078,1800.3,1799.9,0.86816441]
[1680448150278,4.32174839,1800.3,1799.9,0.86816441]
[1680448150483,1.11394839,1800.1,1799.8,0.86816441]
[1680448150980,4.32174839,1800.1,1799.8,0.86816441]
[1680448151182,1.11394839,1799.9,1799.8,0.86816441]
[1680448151382,1.11394839,1799.9,1799.7,0.86816441]
[1680448153986,1.11394839,1799.9,1799.7,6.37616441]
[1680448154392,1.11394839,1799.9,1799.7,5.508]
[1680448154685,0.33945925,1799.8,1799.7,6.37616441]
[1680448154985,1.11394839,1799.9,1799.7,9.58396441]
[1680448155586,1.11394839,1799.9,1799.6,6.37616441]
[1680448155881,1.11394839,1799.9,1799.7,0.86816441]
[1680448156379,0.33948576,1799.8,1799.6,0.86816441]
[1680448156784,1.11394839,1799.9,1799.6,0.86816441]
[1680448157087,0.33949682,1799.8,1799.6,0.86816441]
[1680448157274,1.11394839,1799.9,1799.6,0.86816441]
[1680448157477,0.3395043,1799.8,1799.6,0.86816441]
[1680448157679,1.11394839,1799.7,1799.4,1.41611771]
[1680448157894,1.11394839,1799.7,1799.3,1.14313719]
[1680448157895,1.11394839,1799.5,1799.3,0.86816441]
[1680448158188,4.74854553,1799.6,1799.2,0.86816441]
[1680448158686,1.11394839,1799.3,1799.2,0.86816441]
[1680448158883,1.11394839,1799.3,1799.1,0.86816441]
[1680448160388,1.11394839,1799.2,1799.1,0.86816441]
[1680448161077,1.11394839,1799.2,1799.0,0.86816441]
[1680448161078,4.88485137,1799.2,1799.0,0.86816441]
[1680448161279,1.67705137,1799.2,1799.0,0.86816441]
[1680448163491,4.88485137,1799.2,1798.9,0.86816441]
[1680448163686,1.11394839,1798.7,1798.6,0.86816441]
[1680448163990,1.11394839,1798.7,1798.5,0.86816441]
[1680448163991,4.32174839,1798.7,1798.5,0.86816441]
[1680448165392,4.32174839,1798.7,1798.4,0.86816441]
[1680448165688,3.2078,1798.5,1798.4,0.86816441]
[1680448165893,1.11394839,1798.4,1798.3,0.86816441]
[1680448166188,1.11394839,1798.4,1798.1,0.86816441]
[1680448166396,4.32174839,1798.3,1798.1,0.86816441]
[1680448166691,1.11394839,1798.1,1798.0,0.86816441]
[1680448166896,1.11394839,1798.1,1797.9,4.07596441]
[1680448167092,1.0,1798.4,1798.0,0.86816441]
[1680448167388,1.0,1798.4,1797.9,4.07596441]
[1680448167792,3.2078,1798.3,1797.9,4.07596441]
[1680448167990,1.0,1798.4,1797.9,4.07596441]
[1680448168290,1.0,1798.6,1798.0,6.508]
[1680448168587,3.2078,1798.5,1798.0,5.508]
[1680448168787,1.11394839,1798.3,1798.0,5.508]
[1680448168993,1.11394839,1798.6,1798.0,5.508]
[1680448169195,1.11394839,1798.6,1798.1,3.2078]
[1680448169390,1.11394839,1798.6,1798.2,5.508]
[1680448169693,0.59784982,1798.5,1798.1,4.2078]
[1680448169886,0.59784982,1798.5,1798.3,5.508]
[1680448170188,1.11394839,1798.7,1798.3,4.2078]
[1680448170387,1.11394839,1798.6,1798.3,4.2078]
[1680448170585,4.32174839,1798.9,1798.3,4.2078]
[1680448170793,1.11394839,1798.9,1798.6,5.508]
[1680448171393,1.11394839,1798.9,1798.7,3.2078]
[1680448171890,3.2078,1799.1,1798.7,3.2078]
[1680448172091,4.32174839,1799.3,1798.8,11.53097877]
[1680448172284,3.2078,1799.3,1798.8,11.53097877]
[1680448172790,1.11394839,1799.1,1798.9,3.2078]
[1680448172994,3.2078,1799.3,1798.9,3.2078]
[1680448173791,3.2078,1799.3,1799.0,5.508]
[1680448173987,1.11394839,1799.4,1799.0,5.508]
[1680448174397,1.11394839,1799.4,1799.1,8.7158]
[1680448174590,1.11394839,1799.3,1799.1,8.7158]
[1680448174787,4.2078,1799.7,1799.1,9.7158]
[1680448174990,5.32174839,1799.7,1799.3,5.508]
[1680448175196,5.32174839,1799.7,1799.1,1.0]
[1680448175197,2.11394839,1799.7,1799.5,5.508]
[1680448175490,1.11394839,1799.7,1799.5,5.508]
[1680448175687,4.32174839,1799.9,1799.5,5.508]
[1680448176089,3.2078,1799.9,1799.6,8.7158]
[1680448176282,1.11394839,1800.0,1799.6,15.02226888]
[1680448176484,3.2078,1800.1,1799.6,3.2078]
[1680448176690,3.2078,1800.1,1799.7,5.508]
[1680448177095,3.2078,1800.1,1799.6,4.2078]
[1680448177294,1.11394839,1799.9,1799.6,1.0]
[1680448177600,1.11394839,1799.7,1799.6,1.0]
[1680448178089,1.11394839,1799.7,1799.6,5.508]
[1680448178290,1.11394839,1800.0,1799.6,5.508]
[1680448178486,3.2078,1800.1,1799.6,8.7158]
[1680448178689,4.32174839,1800.1,1799.7,6.0303052]
[1680448178889,4.32174839,1800.1,1799.8,5.508]
[1680448179096,1.11394839,1800.1,1799.8,5.508]
[1680448179290,4.32174839,1800.3,1799.8,5.508]
[1680448179489,3.2078,1800.3,1799.8,8.7158]
[1680448179695,3.2078,1800.3,1800.0,5.508]
[1680448179696,1.11394839,1800.1,1800.0,5.508]
[1680448180797,1.11394839,1800.1,1799.9,5.508]
[1680448182094,1.11394839,1800.1,1799.8,3.2078]
[1680448183295,1.11394839,1799.9,1799.5,3.2078]
[1680448183497,3.2078,1799.9,1799.3,4.2078]
[1680448183692,3.2078,1799.9,1799.3,3.2078]
[1680448183899,1.11394839,1799.7,1799.3,3.2078]
[1680448184098,1.11394839,1799.7,1799.4,5.508]
[1680448184497,0.36719266,1799.6,1799.4,5.508]
[1680448184796,1.11394839,1799.7,1799.4,5.508]
[1680448187799,1.11394839,1799.7,1799.3,5.508]
[1680448188599,1.11394839,1799.7,1799.3,8.7158]
[1680448188796,1.11394839,1799.7,1799.4,6.508]
[1680448189300,1.0,1800.2,1799.6,5.508]
[1680448189301,1.11394839,1799.9,1799.6,5.508]
[1680448189501,1.11394839,1799.9,1799.8,5.508]
[1680448191501,1.0,1800.3,1799.8,5.508]
[1680448191502,1.11394839,1800.3,1799.8,5.508]
[1680448191707,1.11394839,1800.3,1799.9,8.7158]
[1680448191897,1.11394839,1800.3,1800.0,6.508]
[1680448192395,1.11394839,1800.3,1800.1,1.0]
[1680448192802,1.11394839,1800.3,1800.0,6.508]
[1680448193003,1.11394839,1800.3,1800.0,5.508]
[1680448193705,1.11394839,1800.3,1800.1,1.0]
[1680448194207,1.11394839,1800.3,1800.0,6.508]
[1680448194403,1.11394839,1800.3,1800.0,5.508]
[1680448194898,1.11394839,1800.3,1800.1,1.0]
[1680448195094,1.11394839,1800.1,1799.9,3.2078]
[1680448195307,1.11394839,1800.1,1799.9,9.7158]
[1680448195506,1.11394839,1800.1,1800.0,1.0]
[1680448195913,1.11394839,1800.1,1800.0,0.0529877]
[1680448197904,1.11394839,1800.3,1800.0,0.0529877]
[1680448198210,1.11394839,1800.2,1800.1,3.2078]
[1680448199403,1.11394839,1800.3,1800.1,3.2078]
[1680448199602,1.11394839,1800.3,1800.1,3.25851898]
[1680448200409,1.0,1800.8,1800.1,3.25851898]
[1680448200410,1.11394839,1800.5,1800.1,8.76651898]
[1680448200608,1.11394839,1800.5,1800.2,5.508]
[1680448200813,3.2078,1800.8,1800.2,1.0]
[1680448201110,1.11394839,1800.3,1800.1,3.25851898]
[1680448201699,1.10624409,1800.3,1800.1,3.25851898]
[1680448201912,1.10624409,1800.3,1800.1,0.05071898]
[1680448202607,1.0,1800.5,1799.7,0.86816441]
[1680448202608,1.10624409,1799.9,1799.7,0.86816441]
[1680448202814,1.10624409,1799.9,1799.6,9.58396441]
[1680448203008,1.10624409,1799.9,1799.6,4.07596441]
[1680448203314,1.10624409,1799.7,1799.6,4.07596441]
[1680448203610,1.10624409,1799.7,1799.6,3.2078]
[1680448204315,1.10624409,1799.7,1799.4,6.37616441]
[1680448204613,1.10624409,1799.7,1799.5,0.86816441]
[1680448204812,1.10624409,1799.7,1799.4,0.86816441]
[1680448205005,1.10624409,1799.7,1799.4,6.37616441]
[1680448205414,1.10624409,1799.7,1799.5,0.86816441]
[1680448206311,0.05764895,1799.6,1799.5,0.86816441]
[1680448206714,1.10624409,1799.7,1799.5,0.86816441]
[1680448206904,1.10624409,1799.7,1799.4,6.92537698]
[1680448207103,1.10624409,1799.7,1799.4,0.54921257]
[1680448207309,3.2078,1799.5,1799.1,1.14313719]
[1680448207516,1.10624409,1799.2,1799.0,1.14313719]
[1680448207910,0.32096172,1799.1,1799.0,1.14313719]
[1680448208115,0.32096172,1799.1,1798.9,4.35093719]
[1680448208311,1.10624409,1799.0,1798.9,4.35093719]
[1680448209210,1.10624409,1799.0,1798.9,3.2078]
[1680448209813,1.10624409,1799.0,1798.8,1.14313719]
[1680448210012,1.41016535,1799.0,1798.8,1.14313719]
[1680448211608,1.41016535,1799.0,1798.8,6.65113719]
[1680448211812,1.41016535,1799.0,1798.9,1.0]
[1680448212014,0.30392126,1799.0,1798.9,1.0]
[1680448212208,0.30392126,1799.0,1798.8,1.14313719]
[1680448212409,1.10624409,1798.9,1798.8,1.14313719]
[1680448213517,1.10624409,1798.9,1798.8,1.42906193]
[1680448213714,1.10624409,1798.9,1798.7,4.63686193]
[1680448214017,4.31404409,1798.9,1798.8,1.15894938]
[1680448216714,1.10624409,1798.9,1798.8,1.15894938]
[1680448216912,1.10624409,1798.9,1798.7,4.63686193]
[1680448217114,1.10624409,1798.9,1798.8,2.42906193]
[1680448217521,1.10624409,1798.9,1798.8,1.42906193]
[1680448218028,1.10624409,1798.9,1798.8,2.42906193]
[1680448218322,1.10624409,1798.9,1798.8,1.42906193]
[1680448218513,1.10624409,1798.9,1798.7,4.2078]
[1680448218718,1.10624409,1798.9,1798.8,2.44442983]
[1680448218924,1.10624409,1798.9,1798.8,1.0]
[1680448219520,1.10624409,1798.7,1798.5,1.71470579]
[1680448219722,1.10624409,1798.6,1798.4,1.71470579]
[1680448219921,1.10624409,1798.6,1798.3,2.0006867]
[1680448219922,1.10624409,1798.6,1798.5,1.16029518]
[1680448220117,1.10624409,1798.6,1798.4,1.16029518]
[1680448220435,1.10624409,1798.6,1798.5,1.16029518]
[1680448220731,1.10624409,1798.6,1798.3,6.508]
[1680448220930,1.10624409,1798.6,1798.4,3.2078]
[1680448221130,1.10624409,1798.6,1798.4,4.2078]
[1680448221629,1.10624409,1798.6,1798.5,3.2078]
[1680448222716,1.10624409,1798.6,1798.4,1.15941239]
[1680448222921,1.10624409,1798.4,1798.3,1.15941239]
[1680448223627,1.10624409,1798.4,1798.1,1.15941239]
[1680448223628,1.10624409,1798.2,1798.1,1.15941239]
[1680448224334,1.10624409,1798.2,1798.0,1.15941239]
[1680448224527,1.10624409,1798.2,1797.9,1.15941239]
[1680448224729,1.10624409,1798.0,1797.8,4.36721239]
[1680448224928,1.10624409,1798.0,1797.9,1.15941239]
[1680448225129,0.65166105,1798.1,1797.9,2.15941239]
[1680448225328,0.65166105,1798.1,1798.0,4.36721239]
[1680448225628,4.2078,1798.6,1798.0,5.36549546]
[1680448225825,1.10624409,1798.4,1798.1,2.15769546]
[1680448226028,1.10624409,1798.4,1798.2,3.2078]
[1680448226228,1.10624409,1798.5,1798.2,3.2078]
[1680448226532,1.0,1798.7,1798.1,2.15769546]
[1680448226533,1.10624409,1798.7,1798.4,3.2078]
[1680448228035,1.10624409,1798.7,1798.6,8.7158]
[1680448229433,1.10624409,1798.7,1798.6,3.2078]
[1680448231030,1.10624409,1798.7,1798.4,4.36549546]
[1680448231631,1.10624409,1798.7,1798.4,3.2078]
[1680448232026,1.0,1798.9,1798.4,3.2078]
[1680448232232,1.0,1798.9,1798.0,1.15769546]
[1680448232233,1.10624409,1798.2,1798.0,1.15769546]
[1680448232431,1.10624409,1798.2,1797.9,4.36549546]
[1680448233131,1.0,1798.3,1797.9,3.2078]
[1680448233337,1.10624409,1798.0,1797.9,4.36549546]
[1680448233736,1.10624409,1798.0,1797.9,3.2078]
[1680448234342,1.10624409,1798.0,1797.9,4.36549546]
[1680448234640,1.10624409,1798.0,1797.9,3.2078]
[1680448235838,3.82608749,1798.2,1797.7,4.36549546]
[1680448236034,1.10624409,1797.8,1797.7,4.36549546]
[1680448236536,1.10624409,1797.8,1797.7,3.2078]
[1680448238540,1.10624409,1797.8,1797.7,4.36549546]
[1680448238741,1.10624409,1797.8,1797.7,3.2078]
[1680448239637,1.10624409,1797.8,1797.6,1.15769546]
[1680448239941,0.65475469,1797.7,1797.5,4.36549546]
[1680448240135,1.10624409,1797.7,1797.5,4.36549546]
[1680448242657,1.10624409,1797.7,1797.5,3.2078]
[1680448243662,3.2078,1797.6,1797.1,3.2078]
[1680448243856,4.2078,1797.6,1797.1,3.2078]
[1680448244165,1.10624409,1797.2,1797.1,3.2078]
[1680448244560,1.10624409,1797.2,1797.1,4.36549546]
[1680448245170,1.0,1797.5,1797.1,4.36549546]
[1680448245467,1.10624409,1797.2,1797.1,4.36549546]
[1680448246157,1.10624409,1797.2,1797.1,1.15769546]
[1680448246360,4.31404409,1797.2,1797.0,0.1]
[1680448246559,1.10624409,1797.2,1797.0,0.1]
[1680448246957,4.31404409,1797.2,1797.0,0.1]
[1680448247162,1.10624409,1797.2,1797.1,3.2078]
[1680448247363,1.10624409,1797.2,1797.0,3.3078]
[1680448248474,1.10624409,1797.2,1797.0,0.1]
[1680448249563,1.0,1797.1,1797.0,0.1]
[1680448250972,1.0,1797.3,1797.0,0.1]
[1680448251164,1.0,1797.3,1797.2,3.2078]
[1680448251165,1.10624409,1797.3,1797.2,3.2078]
[1680448251669,1.0,1797.5,1797.0,3.3078]
[1680448251970,1.10624409,1797.1,1797.0,3.3078]
[1680448252467,1.10624409,1797.1,1797.0,0.1]
[1680448252669,1.10624409,1796.8,1796.4,3.2078]
[1680448252872,1.10624409,1796.5,1796.4,3.2078]
[1680448254070,1.0,1796.8,1796.4,3.2078]
[1680448254264,1.0,1796.8,1796.1,5.508]
[1680448254265,1.1,1797.0,1796.7,3.2078]
[1680448254471,1.1,1797.0,1796.7,8.7158]
[1680448254769,1.10624409,1796.9,1796.7,8.7158]
[1680448254971,0.66094609,1796.9,1796.7,8.7158]
[1680448255175,1.10624409,1797.1,1796.7,8.7158]
[1680448255371,1.10624409,1796.8,1796.5,3.2078]
[1680448255874,3.2078,1797.0,1796.5,3.2078]
[1680448256171,1.0,1796.9,1796.5,3.2078]
[1680448256676,1.10624409,1796.6,1796.5,3.2078]
[1680448256875,1.10624409,1796.6,1796.3,3.2078]
[1680448257373,1.10624409,1796.5,1796.3,3.2078]
[1680448257569,1.086874,1796.5,1796.3,3.2078]
[1680448258778,1.086874,1796.5,1796.3,8.7158]
[1680448258972,1.0,1796.9,1796.3,8.7158]
[1680448259170,1.086874,1796.6,1796.3,3.2078]
[1680448259374,1.086874,1797.0,1796.5,3.2078]
[1680448259579,1.086874,1796.8,1796.5,3.2078]
[1680448259875,1.086874,1796.8,1796.7,3.2078]
[1680448260073,1.086874,1797.0,1796.7,3.2078]
[1680448260376,1.086874,1796.8,1796.7,3.2078]
[1680448260975,1.086874,1796.5,1796.4,1.0]
[1680448261175,1.086874,1796.5,1796.3,3.2078]
[1680448261479,1.56278649,1797.2,1796.3,3.2078]
[1680448261480,1.086874,1796.7,1796.3,3.2078]
[1680448261775,1.0,1796.7,1796.3,3.2078]
[1680448262180,4.2078,1796.7,1796.3,3.2078]
[1680448262679,1.086874,1796.4,1796.3,3.2078]
[1680448262874,1.086874,1796.4,1796.1,3.2078]
[1680448263086,3.2078,1796.5,1796.1,3.2078]
[1680448263276,1.0,1796.4,1796.1,3.2078]
[1680448263584,1.086874,1796.2,1796.1,3.2078]
[1680448263874,1.0,1796.4,1796.1,3.2078]
[1680448264075,1.086874,1796.2,1796.1,3.2078]
[1680448264379,1.0,1796.1,1795.7,3.2078]
[1680448264579,1.0,1796.1,1795.3,4.36549546]
[1680448264580,4.293874,1796.1,1795.3,4.36549546]
[1680448264777,4.293874,1796.1,1795.2,1.44557013]
[1680448264778,4.294674,1796.0,1795.5,3.2078]
[1680448265077,1.0,1795.9,1795.6,9.421126]
[1680448265278,1.0,1796.7,1795.6,9.421126]
[1680448265279,1.0,1796.5,1795.8,12.628926]
[1680448265473,4.294674,1796.7,1796.1,8.7158]
[1680448265673,1.0,1796.6,1796.1,8.7158]
[1680448265868,3.2078,1796.7,1796.1,8.7158]
[1680448266069,1.086874,1796.3,1795.8,5.508]
[1680448266475,1.086874,1796.3,1795.9,3.2078]
[1680448266780,0.66636809,1796.2,1795.9,14.83658599]
[1680448267983,1.75324209,1796.2,1795.9,14.83658599]
[1680448268176,0.66636809,1796.2,1795.9,14.83658599]
[1680448268382,1.75324209,1796.2,1795.9,14.83658599]
[1680448268571,1.086874,1796.2,1795.9,14.83658599]
[1680448268775,0.667143,1796.1,1795.9,14.83658599]
[1680448269278,1.086874,1796.2,1795.9,11.62878599]
[1680448269978,0.667143,1796.1,1795.9,11.62878599]
[1680448270175,1.086874,1796.2,1795.9,11.62878599]
[1680448270979,1.086874,1796.2,1795.9,9.32858599]
[1680448272687,3.2078,1796.3,1795.9,3.2078]
[1680448272982,1.086874,1796.0,1795.9,3.2078]
[1680448273177,1.086874,1796.1,1795.9,3.2078]
[1680448273381,4.2078,1796.6,1795.9,8.7158]
[1680448273681,1.086874,1796.1,1795.9,8.7158]
[1680448274074,1.086874,1796.3,1795.9,8.7158]
[1680448274386,1.086874,1796.5,1796.2,5.508]
[1680448274676,4.2078,1796.7,1796.4,5.508]
[1680448274677,4.294674,1796.7,1796.4,5.508]
[1680448275287,1.086874,1796.6,1796.4,5.508]
[1680448275683,4.294674,1796.7,1796.4,5.508]
[1680448276488,3.2078,1796.7,1796.4,5.508]
[1680448276787,1.086874,1796.6,1796.4,5.508]
[1680448277485,1.086874,1796.6,1796.5,8.7158]
[1680448277888,1.086874,1796.6,1796.5,9.7158]
[1680448278183,3.2078,1796.9,1796.5,8.7158]
[1680448278381,4.294674,1796.9,1796.5,8.7158]
[1680448278691,4.294674,1796.9,1796.6,1.0]
[1680448278989,1.086874,1796.9,1796.7,5.508]
[1680448279186,1.086874,1796.9,1796.7,8.7158]
[1680448279588,1.086874,1797.1,1796.7,8.7158]
[1680448279785,1.086874,1797.1,1797.0,5.508]
[1680448281886,1.086874,1797.2,1797.0,5.508]
[1680448282186,1.086874,1797.2,1796.9,3.2078]
[1680448282187,2.086874,1797.5,1797.2,5.508]
[1680448283190,1.086874,1797.5,1797.2,5.508]
[1680448283391,1.086874,1797.3,1797.0,5.508]
[1680448283595,1.086874,1797.3,1797.2,5.508]
[1680448283987,0.6578497,1797.3,1797.2,8.7158]
[1680448284183,1.086874,1797.4,1797.2,8.7158]
[1680448284391,0.6578497,1797.3,1797.2,8.7158]
[1680448287789,0.6578497,1797.3,1797.2,9.58054781]
[1680448290198,0.6578497,1797.3,1797.2,8.7158]
[1680448290703,1.086874,1797.4,1797.2,9.87349546]
[1680448291091,0.6578497,1797.3,1797.2,9.87349546]
[1680448291393,1.086874,1797.4,1797.2,9.87349546]
[1680448291594,1.086874,1797.4,1797.3,6.66569546]
[1680448291895,1.086874,1797.4,1797.3,5.508]
[1680448292099,1.086874,1797.4,1797.3,6.66569546]
[1680448292994,4.2078,1797.9,1797.3,6.66569546]
[1680448292995,1.086874,1797.6,1797.3,6.66569546]
[1680448293194,1.086874,1797.6,1797.5,8.7158]
[1680448293398,3.2078,1797.9,1797.5,8.7158]
[1680448293602,1.086874,1797.8,1797.5,9.58511363]
[1680448293795,1.086874,1798.0,1797.8,5.508]
[1680448294196,1.086874,1798.0,1797.7,8.7158]
[1680448294397,1.0,1798.2,1797.4,4.07711363]
[1680448294398,4.2078,1797.9,1797.4,4.07711363]
[1680448294599,4.2078,1797.9,1797.4,0.86931363]
[1680448294600,1.086874,1797.5,1797.4,0.86931363]
[1680448295202,1.74317602,1797.5,1797.4,5.508]
[1680448297808,1.086874,1797.5,1797.4,5.508]
[1680448298395,1.086874,1797.5,1797.3,0.86931363]
[1680448298600,1.086874,1797.5,1797.2,6.37731363]
[1680448298601,1.086874,1797.3,1797.2,6.37731363]
[1680448298813,1.086874,1797.3,1797.2,5.508]
[1680448299012,1.086874,1797.3,1797.2,6.37723079]
[1680448300006,4.294674,1797.3,1797.0,0.55996765]
[1680448300206,1.086874,1797.1,1796.9,6.37723079]
[1680448301407,1.086874,1797.1,1796.9,0.86923079]
[1680448301706,1.086874,1797.1,1796.8,0.86923079]
[1680448301707,1.086874,1796.9,1796.8,0.86923079]
[1680448301901,4.294674,1796.9,1796.5,0.86940763]
[1680448302100,1.086874,1796.6,1796.5,0.86940763]
[1680448302299,1.086874,1796.6,1796.4,0.86940763]
[1680448303710,4.294674,1796.6,1796.4,0.86940763]
[1680448304108,3.2078,1796.6,1796.3,0.86940763]
[1680448304312,4.294674,1796.4,1796.3,0.86940763]
[1680448304707,4.294674,1796.4,1796.2,0.86940763]
[1680448305611,1.086874,1796.4,1796.3,0.86940763]
[1680448306105,4.294674,1796.4,1796.2,0.86940763]
[1680448306409,4.294674,1796.4,1796.3,0.86940763]
[1680448306615,4.294674,1796.4,1796.2,0.86940763]
[1680448306813,1.086874,1796.1,1795.8,0.86948719]
[1680448307008,1.086874,1795.7,1795.5,2.02741428]
[1680448307207,3.2078,1795.6,1795.5,0.86971882]
[1680448307407,3.2078,1795.6,1795.4,0.86971882]
[1680448307712,1.086874,1795.5,1795.4,0.86971882]
[1680448307909,1.086874,1795.5,1795.3,0.86971882]
[1680448308407,1.086874,1795.3,1795.1,0.86971882]
[1680448308911,1.086874,1795.3,1795.2,0.86971882]
[1680448310010,1.086874,1795.3,1795.1,6.66569546]
[1680448310011,4.294674,1795.3,1795.1,0.86895612]
[1680448310208,3.2078,1795.3,1795.0,0.96895612]
[1680448310408,4.294674,1795.1,1795.0,0.1]
[1680448310715,4.294674,1795.1,1795.0,1.1]
[1680448310912,4.294674,1795.1,1795.0,0.1]
[1680448311319,1.086874,1794.7,1794.6,2.02665158]
[1680448311508,4.294674,1794.7,1794.5,0.86895612]
[1680448311911,1.086874,1794.5,1794.3,0.86895612]
[1680448312216,1.086874,1794.5,1794.2,1.15769546]
[1680448312217,1.086874,1794.3,1794.2,0.86895612]
[1680448312516,1.086874,1794.3,1794.0,4.80337013]
[1680448312517,1.086874,1794.1,1794.0,0.15]
[1680448312718,1.086874,1794.1,1793.7,0.86895612]
[1680448312719,1.086874,1793.9,1793.7,0.86895612]
[1680448313008,1.086874,1793.4,1793.3,0.86895612]
[1680448313209,0.96148378,1793.5,1793.2,0.86895612]
[1680448313412,0.96148378,1793.5,1793.1,0.86895612]
[1680448313613,3.2078,1793.8,1793.7,4.03851622]
[1680448313822,3.2078,1794.5,1793.9,4.03851622]
[1680448314019,1.0,1794.6,1794.1,7.24631622]
[1680448314215,1.0,1794.4,1794.2,4.03851622]
[1680448314517,0.96148378,1794.3,1794.1,3.2078]
[1680448314713,1.0,1793.8,1793.6,4.03851622]
[1680448314918,0.96148378,1794.1,1793.5,3.2078]
[1680448315111,1.96148378,1794.1,1793.6,4.03851622]
[1680448315511,1.0,1794.1,1793.6,4.03851622]
[1680448315816,3.2078,1794.3,1793.8,3.2078]
[1680448316018,0.96148378,1794.1,1793.5,3.2078]
[1680448316216,0.96148378,1794.1,1793.6,3.2078]
[1680448316406,3.2078,1794.1,1793.5,3.2078]